Cogmind - Beta 13 @@@ ROGUE MODE // 2024.04.07 @ 03:32:52 Player: Viddaric Result: Destroyed self with Rocket Launcher Performance ------------- Evolutions (1) 500 Regions Visited (3) 600 Robots Destroyed (72) 360 Value Destroyed (1633) 1633 Prototype IDs (7) 140 Alien Tech Used (0) 0 Bonus (323) 323 TOTAL SCORE: 3556 Bonus ------- High Alert Combat Kills 323 Cogmind --------- Core Integrity 0/400 Matter 255/300 Energy 115/265 System Corruption 2% Temperature Cool (16) Movement Flying (177) Ox2 Location -9/Storage Parts ------- > --- POWER (1) -------- Improved Ion Engine > --- PROPULSION (3) --- Improved Flight Unit Improved Flight Unit > --- UTILITY (3) ------ Medium Storage Unit Salvage Targeting Computer Salvage Targeting Computer > --- WEAPON (2) ------- Rocket Launcher > --- INVENTORY (10) --- High-capacity Battery (250) Large Matter Pod (150) Salvage Targeting Computer Salvage Targeting Computer Light Armor Plating Mini Grenade Launcher Datajack Peak State ------------ > --- POWER ------------ Improved Ion Engine > --- PROPULSION ------- Flight Unit Improved Flight Unit Improved Flight Unit > --- UTILITY ---------- Medium Storage Unit Salvage Targeting Computer Salvage Targeting Computer > --- WEAPON ----------- Heavy Assault Rifle Rocket Launcher > --- INVENTORY -------- High-capacity Battery Large Matter Pod Salvage Targeting Computer Salvage Targeting Computer Light Armor Plating Mini Grenade Launcher Datajack [Rating: 19] Favorites ----------- Power Ion Engine Engine Ion Engine Propulsion Wheel Wheel Wheel Flight Unit Improved Flight Unit Utility Small Storage Unit Storage Small Storage Unit Processor Salvage Targeting Computer Hackware Hacking Suite Protection Light Armor Plating Weapon Heavy EM Pulse Gun Energy Gun Heavy EM Pulse Gun Ballistic Gun Heavy Assault Rifle Launcher Mini Grenade Launcher Slashing Weapon Mining Claw Build | -11 -10 -9 -9 ------- Run | Yrd Mat Mat Sto Slots Evolved 2 | . . 2 . Power . | . . . . Propulsion 1 | . . 1 . Utility 1 | . . 1 . Weapon . | . . . . Parts Attached 59 | 6 7 32 14 Power 8 | 1 2 4 1 Engine 8 | 1 2 4 1 Core . | . . . . Reactor . | . . . . Propulsion 13 | 2 . 7 4 Treads . | . . . . Leg . | . . . . Wheel 9 | 2 . 7 . Hover . | . . . . Flight 4 | . . . 4 Utility 7 | 1 1 4 1 Device . | . . . . Storage 2 | 1 . . 1 Processor 2 | . . 2 . Hackware 1 | . 1 . . Protection 2 | . . 2 . Artifact . | . . . . Weapon 31 | 2 4 17 8 Energy Gun 10 | 1 3 6 . Energy Cannon . | . . . . Ballistic Gun 11 | 1 . 5 5 Ballistic Cannon . | . . . . Launcher 8 | . 1 5 2 Special Weapon . | . . . . Impact Weapon . | . . . . Slashing Weapon 2 | . . 1 1 Piercing Weapon . | . . . . Special Melee Weapon . | . . . . Unidentified Prototypes 3 | . . 2 1 Parts Lost 13 | . . 8 5 Power 1 | . . 1 . Propulsion 7 | . . 4 3 Utility 2 | . . 2 . Weapon 3 | . . 1 2 Highest Loss Streak 3 | . . 3 3 To Critical Strikes . | . . . . Average Slot Usage (%) 93 | . 98 92 83 Engine 9 | . 14 9 . Wheel 26 | . 28 29 15 Flight 2 | . . . 14 Storage 12 | . 14 11 11 Processor 5 | . . 3 22 Hackware 9 | . 12 9 . Protection 3 | . . 6 . Energy Gun 13 | . 24 8 . Ballistic Gun 8 | . 3 9 16 Launcher 1 | . . 2 1 Slashing Weapon 1 | . . 1 3 Naked Turns . | . . . . Heaviest Build 21 | 11 16 21 14 Greatest Support 30 | 20 20 30 30 Greatest Overweight (x) 2 | 1 . 1 2 Average Overweight (x) . | . . . . Largest Inventory Capacity 10 | 8 8 8 10 Average Capacity 8 | 7 8 8 8 Most Carried 9 | 1 8 8 9 Average Carried 7 | . 7 7 8 Final Capacity 10 | 8 8 8 10 Final Carried 8 | 1 8 8 7 Class Distribution -------------------- 63% | Mutant 36% | Scavenger-Mutant Dominant Class ---------------- Mutant | -10/Materials Scavenger-Mutant | -9/Materials Scavenger-Mutant | -9/Storage Resources | -11 -10 -9 -9 ----------- Run | Yrd Mat Mat Sto Matter Collected 1534 | 197 365 601 371 Remotely . | . . . . Salvage Created 2058 | . 331 1240 487 Parts 171 | . 30 106 35 Haulers Intercepted 5 | . 1 2 2 Recyclers Shooed . | . . . . Parts Field Recycled . | . . . . Retrieved Matter . | . . . . Parts Self-Destructed . | . . . . Prevented . | . . . . Kills | -11 -10 -9 -9 ------- Run | Yrd Mat Mat Sto Combat Hostiles Destroyed 47 | . 10 27 10 Guns 30 | . 7 13 10 AOE 17 | . 3 14 . Classes Destroyed 10 | . 5 5 . Worker 4 | . . 3 1 Builder 5 | . . 5 . Tunneler 1 | . . 1 . Hauler 5 | . 1 2 2 Recycler 1 | . . 1 . Operator 3 | . 1 2 . Watcher 6 | . 2 4 . Swarmer 14 | . 6 4 4 Grunt 27 | . 4 19 4 Sentry 6 | . . 4 2 Best Kill Streak 11 | . 6 11 8 Combat Bots Only 9 | . 6 9 7 Max Kills in Single Turn 4 | . 4 3 1 Gunslinging . | . . . . Exploded 3 | . 3 3 . Melee . | . . . . Uniques/NPCs Destroyed . | . . . . Combat | -11 -10 -9 -9 -------- Run | Yrd Mat Mat Sto Hostile Shots Fired 180 | . 15 101 64 Missed 60 | . 7 36 17 Damage Taken 1905 | . 58 1130 717 Core 438 | . 17 183 238 Absorbed by Shields . | . . . . Regen/Repaired (Parts) 37 | . . . 37 Core Remaining (%) 96 | 100 93 . . Volleys Fired 143 | . 30 73 40 Largest 2 | . 2 2 2 Hottest 90 | . 90 90 56 Shots Fired 257 | . 60 130 67 Gun 233 | . 59 109 65 Cannon . | . . . . Launcher 24 | . 1 21 2 Special . | . . . . Kinetic 120 | . 9 46 65 Thermal 9 | . 9 . . Explosive 24 | . 1 21 2 Electromagnetic 104 | . 41 63 . Robot Hit Streak 11 | . 6 10 11 Robot Miss Streak 5 | . 4 5 5 Penetration Max . | . . . . Secondary Targets 2 | . . 2 . Max Gunslinging Chain 1 | . . 1 . Shots Hit Robots 149 | . 31 73 45 Core Hits 99 | . 16 64 19 Critical Kills . | . . . . Critical Parts Destroyed 1 | . . . 1 Critical Strikes 1 | . . . 1 Destroy 1 | . . . 1 Melee Attacks 5 | . . 4 1 Impact . | . . . . Slashing 5 | . . 4 1 Piercing . | . . . . Sneak Attacks 3 | . . 2 1 Combat Hostiles . | . . . . Follow-up Attacks . | . . . . Damage Inflicted 4019 | . 652 2536 831 Guns 2100 | . 456 1012 632 Cannons . | . . . . Explosions 1758 | . 196 1426 136 Melee 161 | . . 98 63 Ramming . | . . . . Kinetic 1109 | . 48 429 632 Thermal 224 | . 37 187 . Explosive 1571 | . 196 1239 136 Electromagnetic 954 | . 371 583 . Impact . | . . . . Slashing 161 | . . 98 63 Piercing . | . . . . Highest Corruption 2 | . . 2 2 Average Corruption 2 | . . 2 2 Corruption Purged . | . . . . Corruption Blocked . | . . . . Effects 4 | . . 2 2 Message Errors 1 | . . . 1 Matter Fused 2 | . . 2 . Alerts 1 | . . . 1 Overload Shots . | . . . . Overflow Damage 89 | . . 52 37 Projectiles . | . . . . Explosions 38 | . . 34 4 Melee 51 | . . 18 33 Knockbacks . | . . . . Impact . | . . . . Kinetic . | . . . . Secondary . | . . . . Self-Inflicted Damage 367 | . . 271 96 Shots 10 | . . 8 2 Rammed . | . . . . Targets Rammed . | . . . . Kicked . | . . . . Crushed . | . . . . Highest Temperature 195 | . 150 195 17 Average Temperature 55 | . 56 55 16 Received Heat Transfer 516 | . . 363 153 Siege Activations . | . . . . Robots Corrupted 1 | . 1 . . Combat Hostiles . | . . . . Parts Fried 6 | . 5 1 . Impact Corruptions . | . . . . Robots Melted . | . . . . Combat Hostiles . | . . . . Parts Melted . | . . . . Heat Transferred 361 | . 111 250 . Parts Sabotaged . | . . . . Parts Stolen . | . . . . Parts Stripped . | . . . . Power Chain Reactions 4 | . . 4 . Alert | -11 -10 -9 -9 ------- Run | Yrd Mat Mat Sto Peak Influence 929 | . 316 929 750 Initial 391 | . . 100 391 Average 396 | . 148 564 536 Maximum Alert Level 3 | . 1 3 3 Low Security (%) 30 | 100 68 7 . Level 1 22 | . 31 15 24 Level 2 30 | . . 44 66 Level 3 16 | . . 32 9 Level 4 . | . . . . Level 5 . | . . . . High Security . | . . . . Max Security . | . . . . Squads Dispatched 11 | . 2 5 4 Investigation 3 | . . 3 . Extermination . | . . . . Reinforcement 6 | . 2 2 2 Assault . | . . . . Garrison 2 | . . . 2 Intercept . | . . . . Searches Triggered . | . . . . Construction Impeded . | . . . . Haulers Reinforced . | . . . . Active Scanning Responses . | . . . . Cargo Convoy Interrupts . | . . . . Stealth | -11 -10 -9 -9 --------- Run | Yrd Mat Mat Sto Distress Signals 2 | . 1 1 . Communications Jammed . | . . . . Distress Signals . | . . . . Times Spotted 84 | . 15 46 23 Peak Tracking Total 12 | . 4 12 9 Tactical Retreats 3 | . 1 1 1 Traps | -11 -10 -9 -9 ------- Run | Yrd Mat Mat Sto Traps Triggered 2 | . . 2 . Indirectly . | . . . . Trap Hack Attempts . | . . . . Triggered . | . . . . Disarmed . | . . . . Reprogrammed . | . . . . Reused . | . . . . Traps Extracted . | . . . . Installed . | . . . . Triggered 1 | . 1 . . Machines | -11 -10 -9 -9 ---------- Run | Yrd Mat Mat Sto Machines Disabled 7 | . 3 3 1 Max in Single Turn 2 | . 1 2 1 Machines Repaired . | . . . . Machines Dismantled . | . . . . Machines Sabotaged . | . . . . Overloaded Fab Kills . | . . . . Hacking | -11 -10 -9 -9 --------- Run | Yrd Mat Mat Sto Machines Accessed 14 | . 8 3 3 Terminals 10 | . 6 3 1 Fabricators . | . . . . Repair Stations 1 | . . . 1 Recycling Units 2 | . 2 . . Scanalyzers . | . . . . Garrison Access 1 | . . . 1 Total Hacks 39 | . 24 7 8 Successful 20 | . 13 2 5 Failed 19 | . 11 5 3 Catastrophic 2 | . 1 1 . Database Lockouts . | . . . . Manual . | . . . . Terminals 27 | . 17 7 3 Fabricators . | . . . . Repair Stations 2 | . . . 2 Recycling Units 7 | . 7 . . Scanalyzers . | . . . . Garrison Access 3 | . . . 3 Terminal Hacks 13 | . 9 2 2 Robot Analysis 2 | . 2 . . Prototype ID Bank 2 | . . 1 1 Emergency Access Points 2 | . 2 . . Alert Level 1 | . . . 1 Transport Status 1 | . 1 . . Assault Status 1 | . 1 . . Hauler Manifests 2 | . 2 . . Registered Components 2 | . 1 1 . Fabricator Hacks . | . . . . Repair Station Hacks 2 | . . . 2 Scan Component 1 | . . . 1 Repair 1 | . . . 1 Recycling Unit Hacks 4 | . 4 . . Process 1 | . 1 . . Report Inventory 2 | . 2 . . Retrieve Matter 1 | . 1 . . Scanalyzer . | . . . . Garrison Access Hacks 1 | . . . 1 Unlock Access 1 | . . . 1 Unauthorized Hacks . | . . . . Terminals . | . . . . Fabricators . | . . . . Repair Stations . | . . . . Recycling Units . | . . . . Scanalyzers . | . . . . Garrison Access . | . . . . Data Cores Recovered . | . . . . Used . | . . . . Hacking Detections 10 | . 6 2 2 Full Trace Events 3 | . 1 1 1 Feedback Events . | . . . . Feedback Blocked . | . . . . Robot Schematics Acquired . | . . . . Robots Built . | . . . . Authchips . | . . . . Time . | . . . . Total Robot Build Rating . | . . . . Part Schematics Acquired . | . . . . Parts Built . | . . . . Authchips . | . . . . Time . | . . . . Total Part Build Rating . | . . . . Parts Repaired 1 | . . . 1 Time 32 | . . . 32 Parts Recycled . | . . . . Recycled Matter 198 | . 198 . . Retrieved Matter 246 | . 246 . . Retrieved Components . | . . . . Parts Scanalyzed . | . . . . Part Schematics Acquired . | . . . . Parts Damaged . | . . . . Bothacking | -11 -10 -9 -9 ------------ Run | Yrd Mat Mat Sto Used RIF Installer . | . . . . Robots Hacked . | . . . . Non-combat . | . . . . Combat . | . . . . Robot Hacks Applied . | . . . . Relay Couplers Released . | . . . . Fabnet Peak Effective % . | . . . . Robots Rewired . | . . . . Allies Hacked . | . . . . Hacks Repelled . | . . . . Allies | -11 -10 -9 -9 -------- Run | Yrd Mat Mat Sto Total Allies . | . . . . Largest Group . | . . . . Highest-Rated Group . | . . . . Highest-Rated Ally . | . . . . Total Orders . | . . . . Ally Attacks . | . . . . Total Damage . | . . . . Kills . | . . . . Allies Corrupted . | . . . . Allies Melted . | . . . . Intel | -11 -10 -9 -9 ------- Run | Yrd Mat Mat Sto Robot Analysis Total 2 | . 2 . . Derelict Logs Recovered . | . . . . Drone Launches . | . . . . Drone Recoveries . | . . . . Exploration | -11 -10 -9 -9 ------------- Run | Yrd Mat Mat Sto Turns Passed 1593 | 37 575 740 241 Spaces Moved 1265 | 33 518 562 152 Core 5 | 5 . . . Treads . | . . . . Legs . | . . . . Wheels 1186 | 28 518 562 78 Hover . | . . . . Flight 74 | . . . 74 Fastest Speed 34 | 50 80 80 34 Average Speed 77 | 81 80 81 58 Slowest Speed 180 | 100 80 95 180 Overloaded Moves . | . . . . Propulsion Burnouts . | . . . . Robots Hopped 3 | . . . 3 Cave-ins Triggered 1 | . . 1 . Exploration Rate (%) 35 | 3 78 39 23 Regions Visited 3 Branch Regions 1 Pre-discovered Areas . | . . . . Known Exits Taken . | . . . . Unknown Exits Taken 3 | 1 1 1 . Scrap Searched . | . . . . Spaces Dug 119 | . . 119 . Terrain Destroyed 253 | . 12 238 3 Melee 1 | . . 1 . Projectile . | . . . . AOE 252 | . 12 237 3 Terrain Rammed . | . . . . Walls Destroyed . | . . . . Machines Disabled . | . . . . Actions | -11 -10 -9 -9 --------- Run | Yrd Mat Mat Sto Total 1599 | 39 621 707 232 Wait 65 | . 48 4 13 Move 1255 | 32 517 560 146 Hop 3 | . . . 3 Pick Up 29 | 1 11 11 6 Fast Attach 27 | 6 3 13 5 Attach 7 | . . 5 2 Detach 2 | . . 1 1 Swap 25 | . 4 14 7 Drop 37 | . 8 21 8 Fire 143 | . 30 73 40 Melee 5 | . . 4 1 Ram . | . . . . Kick . | . . . . Crush . | . . . . Escape Stasis 1 | . . 1 . Rewire . | . . . . Trap . | . . . . Miscellaneous . | . . . . Route ------- -11/Scrapyard -10/Materials (discovered 4 exits: *Mat x3 / [*Min]) -9/Materials (discovered 3 exits: [*Min x2] / *Sto) -9/Storage (discovered 1 exit: Gar) History --------- Turn | Location | Event 26 | -11/Scrapyard | Discovered new exit (range 12) 38 | -11/Scrapyard | Entered Materials 147 | -10/Materials | Discovered new exit (range 5) 172 | -10/Materials | Discovered new exit (range 12) 241 | -10/Materials | Discovered new exit (range 5) 305 | -10/Materials | Build established: Mutant 395 | -10/Materials | Discovered new exit (range 8) 613 | -10/Materials | Entered another Materials area 613 | -9/Materials | Evolved 2 slots: Propulsion x1, Utility x1 710 | -9/Materials | Discovered new exit (range 10) 954 | -9/Materials | Discovered new exit (range 16) 982 | -9/Materials | Destroyed 9 combat bots 1005 | -9/Materials | Discovered new exit (range 15) 1254 | -9/Materials | Build established: Scavenger-Mutant 1268 | -9/Materials | Crushed by falling debris 1299 | -9/Materials | Lost 3 parts (1p1n1w) 1353 | -9/Materials | Entered Storage 1393 | -9/Storage | Repaired Hvy. Assault Rifle? 1505 | -9/Storage | Destroyed 7 combat bots 1548 | -9/Storage | Identified exit to Garrison 1573 | -9/Storage | Core integrity fell below 50% 1592 | -9/Storage | Core integrity fell below 20% 1594 | -9/Storage | Destroyed self with Rocket Launcher Last Messages --------------- Y-45 Defender emerges from the garrison. Acquired 40 matter. Acquired 6 matter. Acquired 4 matter. K-01 Serf collects debris. Hvy. Assault Rifle destroyed. K-01 Serf collects debris. Y-45 Defender destroyed. Acquired 21 matter. K-01 Serf collects debris. Acquired Imp. Ion Engine. Y-45 Defender emerges from the garrison. K-01 Serf collects debris. Dropped Flight Unit. [Achievement: Let's See Who's Tougher] K-01 Serf destroyed. The unstable cave ceiling collapses. Hvy. Assault Rifle destroyed. Flight Unit destroyed. Destroyed Flight Unit. Map ----- +----------------------------------------------------+ | ???????????????????????????????????????????????? | | ???????????????????????????????????????????????? | | ???????????????????????????????????????????????? | | ???????????????????????????????????????????????? | | ???????????????????????????????????????????????? | | ???????????????????????????????????????????????? | | ???????????????????????????????????????????????? | | ???????????????????????????????????????????????? | | ???????????????????????????????????????????????? | | ???????????????????????????????????????????????? | | ???????????????????????????????????????????????? | | ???????????????????????????????????????????????# | | ???????????????????????????????????????????????# | | ???????????????????????????????????????????????# | | ???????????????????????????????????????????????# | | ???????????????????????????????????????????????? | | ???????????????????????????????????????????????? | | ???????????????????????????????????????????????? | | ?????????????########+########################## | | ?????????????? ^ | | ?????????????????# | | ?????????????????# g = Y | | ?????????????????# """=[% ######+########+### | | ?????????????????# "G>%= #????# #????? ?? | | ???????????????### """Yl #????#? #????? ?? | | ????????????" @ #?????? #???? ? | | ????????????" o #???????#????"" ? | | ????????????"#T##+#### # #???????????""" | | ???????????????# ???? ### ###???????????""" | | ???????????????#???? ??? ???????????#""" | | ???????????????????" ????"""?????????????" | | ??????????????????? ???????????????????? | | ?????????????????? ????????????????????### # | | ????????????????? """ ???????????????????????## | | ???????????????? """ ?????????????????????????? | | ???????????????? """ ?????????????????????????? | | ???????????????#???? ?????????????????????????? | | ????????????????????Y ?????????????????????????? | | ???????????????????? ?????????????????????????? | | ???????????????????? ??????????????????????????? | | ???????????????????????????????????????????????? | | ???????????????????????????????????????????????? | | | | | | | | | | | | | | | | | +----------------------------------------------------+ Best States ------------- Heat Dissipation 28 Energy Generation 12 Energy Capacity 265 Matter Stores 300 Matter Capacity 300 Sight Range 16 Terrain Scan Density 10 Armor Coverage 150 Evasion (%) 63 Salvage Targeting 2 Offensive Hacking 10 Item Schematics ----------------- None Robot Schematics ------------------ None Fabricated ------------ Nothing Alien Tech Used ----------------- None Achievements -------------- Let's See Who's Tougher Party Time Challenges ------------ None Game ------ Seed GreatDerelictMapper Manual? 0 Play Time 01:06:38 Cumulative 15.7 hours Start 2024.04.07 @ 02:19:28 End 2024.04.07 @ 03:32:52 Sessions 1 Manual Loads 0 Difficulty Rogue Special Mode None Game No. 7 Rogue 7 Adventurer 0 Explorer 0 Win Type - Total 0 Types 0/0/0/0/0/0/0/0/0 Lore% 9 Gallery% 21 Achievement% 18 Wizard Run 0 Options --------- Layout 1 ASCII 0 Keyboard 0 Movement Mouse Keybinds 0 Fullscreen 2 Font 24/Cog Map View 50x35 Zoom Use 0% Tactical HUD 0 Map Filters NONE Filters NONE Steam 1 RUN: 22efc944-5a86-45f8-a82b-c2c8947ec20f